Workbook

Sheet PRICING SCHEDULE (hidden)
B1: SUPPLY CHAIN MANAGEMENT
B2: Pricing schedule
A3: RFQ No
A4: RFQ Title | B4: PROVISION OF CLEANING AND HYGIENE SERVICES FOR SITA LIMPOPO OFFICES FOR A PERIOD OF THIRTY-SIX (36) MONTHS
A5: Bidder Name
A7: 1. INSTRUCTION FOR COMPLETING THE PRICING SCHEDULE
A8: (a) Bidder must complete/enter YELLOW cells only
A9: (b) Unit and Line prices must be VAT EXCLUSIVE and in South African Rand (ZAR) currency.
A10: (c) The price must include all cost to deliver the goods or render the service, including all applicable taxes, duty fees, logistics/delivery, storage, labour, overtime and subsistance and travel
A12: Item No | B12: Goods/Service description Nelspruit Office | C12: Unit of measure | D12: Forex % | E12: Qty | F12: Unit/Monthly Price Y1 (Excl VAT | G12: Line/Annual Price Y1 | H12: Unit/Monthly Price Y2 (Excl VAT) | I12: Line/Annual Price Y2 | J12: Unit/Monthly Price Y3 (Excl VAT) | K12: Line/Annual Price Y3 | L12: TOTAL CONTRACT VALUE
A13: 1 | B13: SITA MPUMALANGA- CLEANING & HYGIENE SERVICES NELSPRUIT OFFICE | G13: =SUBTOTAL(9,G14:G31) -> R61,850.00 | I13: =SUBTOTAL(9,I14:I31) -> R26,280.00 | K13: =SUBTOTAL(9,K14:K31) -> R30,000.00 | L13: =SUBTOTAL(9,L14:L31) -> R236,260.00
A14: 1.1 | B14: Full-time Cleaners (40 hours a week) Nelspruit & Middelburg Office | C14: No. of Person | D14: n/a | E14: 1 | G14: =F14*12 -> 0 | I14: =H14*12 -> 0 | K14: =J14*12 -> 0 | L14: =G14+I14+K14 -> 0
A15: 1.4 | B15: Supply of monthly cleaning and hygiene consumables/material | C15: Monthly | D15: n/a | E15: 12 | G15: =F15*12 -> 0 | I15: =H15*12 -> 0 | K15: 0 | L15: =G15+I15+K15 -> 0
A16: 1.5 | B16: Deep cleaning of toilets monthly | C16: Monthly | D16: n/a | E16: 12 | F16: R340.00 | G16: =F16*12 -> R4,080.00 | H16: R420.00 | I16: =H16*12 -> R5,040.00 | J16: R470.00 | K16: R5,640.00 | L16: R14,760.00
A17: 1.6 | B17: Deep cleaning of carperts and couches (Quarterly) | C17: Quarterly | D17: n/a | E17: 4 | G17: =F17*4 -> 0 | I17: =H17*4 -> 0 | K17: =J17*4 -> 0 | L17: 0
A18: 1.7 | B18: Deep Cleaning of Chairs / couches (Bi-Annually) | C18: Bi-annualy | D18: n/a | E18: 2 | G18: =F18*2 -> 0 | I18: =H18*2 -> 0 | K18: =J18*2 -> 0 | L18: 0
A19: 1.8 | B19: Sanitary Bin Service/ waste removal (twice a month) | C19: Bi-Weekly | D19: n/a | E19: 24 | F19: R190.00 | G19: =F19*24 -> R4,560.00 | H19: R220.00 | I19: =H19*24 -> R5,280.00 | J19: R250.00 | K19: =J19*24 -> R6,000.00 | L19: R15,840.00
A20: 1.9 | B20: Decontamination | C20: monthly | D20: n/a | E20: 12 | G20: 0 | I20: 0 | K20: 0 | L20: =G20+I20+K20 -> 0
A21: 2 | B21: Hygiene Dispensers/ equipment/ sanitary bins maintenance Maintenance | G21: 0 | I21: 0 | K21: 0 | L21: =G21+I21+K21 -> 0
A22: 2.1 | B22: 1. Wall waste bins ( with inner dressing bin bags) - x5 2. Touch free Handpaper towel dispencer - (suitable for the supplied handpaper towel) x5 3. She Packet Dispensers x4 4. Disinfactant Handsoap Dispenser (foam) (x5) 5. Hand sanitiser dispenser x5 6. Sanitary bins (with bin bags for sanitary waste disposal) 5 7. Air-mist dispensers 6 | C22: Monthly | D22: n/a | E22: 12 | F22: R1,590.00 | G22: R19,080.00 | H22: R1,330.00 | I22: R15,960.00 | J22: R1,530.00 | K22: R18,360.00 | L22: =G22+I22+K22 -> R53,400.00
A23: 3 | B23: Supply of Hygiene Dispensers/ equipment/ sanitary bins (Once off supply & installation) | L23: =SUM(L14:L22) -> R84,000.00
A24: 3.1 | B24: Wall waste bins ( with inner dressing bin bags) - x5 | C24: once off | E24: 5 | F24: R1,110.00 | G24: =F24*5 -> R5,550.00 | H24: =F24/5 -> R222.00 | L24: =G24+I24+K24 -> R5,550.00
A25: 3.2 | B25: 2. Touch free Handpaper towel dispencer - (suitable for the supplied handpaper towel) x5 | C25: once off | E25: 5 | F25: R990.00 | G25: =F25*8 -> R7,920.00 | H25: =F25/5 -> R198.00 | L25: R7,920.00
A26: 3.3 | B26: 3. She Packet Dispensers x4 | C26: once off | E26: 4 | F26: R590.00 | G26: =F26*4 -> R2,360.00 | H26: 0 | L26: R2,360.00
A27: 3.4 | B27: 4. Disinfactant Handsoap Dispenser (foam) x5 | C27: once off | E27: 5 | F27: R990.00 | G27: =F27*5 -> R4,950.00 | H27: 0 | L27: R4,950.00
A28: 3.5 | B28: 5. Hand sanitiser dispenser x5 | C28: once off | E28: 5 | F28: R990.00 | G28: =F28*5 -> R4,950.00 | H28: =F28/5 -> R198.00 | L28: R4,950.00
A29: 3.6 | B29: 6. Sanitary bins (with bin bags for sanitary waste disposal) x4 | C29: once off | E29: 4 | F29: R1,110.00 | G29: =F29*4 -> R4,440.00 | H29: 0 | L29: R4,440.00
A30: 3.7 | B30: 7. Air-mist dispensers x6 | C30: once off | E30: 6 | F30: R660.00 | G30: =F30*6 -> R3,960.00 | H30: =F30/1 -> R660.00 | L30: R3,960.00
H31: =SUM(H24:H30) -> R1,278.00 | L31: =SUM(L24:L30) -> R34,130.00
A32: 1 | B32: SITA MPUMALANGA- CLEANING & HYGIENE SERVICES MIDDELBURG OFFICE | G32: =SUBTOTAL(9,G33:G50) -> R14,740.00 | I32: =SUBTOTAL(9,I33:I50) -> R12,240.00 | K32: =SUBTOTAL(9,K33:K50) -> R12,240.00 | L32: =SUBTOTAL(9,L33:L50) -> R39,220.00
A33: 1.1 | B33: Full-time Cleaners (40 hours a week) Middelburg Office | C33: No. of Person | D33: n/a | E33: 1 | F33: R120.00 | G33: =F33*12 -> R1,440.00 | H33: R120.00 | I33: =H33*12 -> R1,440.00 | J33: R120.00 | K33: =J33*12 -> R1,440.00 | L33: =G33+I33+K33 -> R4,320.00
A34: 1.4 | B34: Supply of monthly cleaning and hygiene consumables/material | C34: Monthly | D34: n/a | E34: 12 | F34: R120.00 | G34: =F34*12 -> R1,440.00 | H34: R120.00 | I34: R1,440.00 | J34: R120.00 | K34: =J34*12 -> R1,440.00 | L34: =G34+I34+K34 -> R4,320.00
A35: 1.5 | B35: Deep cleaning of toilets monthly | C35: Monthly | D35: n/a | E35: 12 | F35: R120.00 | G35: R1,440.00 | H35: R120.00 | I35: R1,440.00 | J35: R120.00 | K35: =J35*12 -> R1,440.00 | L35: R4,320.00
A36: 1.6 | B36: Deep cleaning of carperts and couches (Quarterly) | C36: Quarterly | D36: n/a | E36: 4 | F36: R120.00 | G36: =F36*4 -> R480.00 | H36: R120.00 | I36: =H36*4 -> R480.00 | J36: R120.00 | K36: =J36*4 -> R480.00 | L36: R1,440.00
A37: 1.7 | B37: Deep Cleaning of Chairs / couches (Bi-Annually) | C37: Bi-annualy | D37: n/a | E37: 2 | F37: R120.00 | G37: =F37*2 -> R240.00 | H37: R120.00 | I37: =H37*2 -> R240.00 | J37: R120.00 | K37: =J37*2 -> R240.00 | L37: R720.00
A38: 1.8 | B38: Sanitary Bin Service/ waste removal (twice a month) | C38: Bi-Weekly | D38: n/a | E38: 48 | F38: R120.00 | G38: =F38*48 -> R5,760.00 | H38: R120.00 | I38: =H38*48 -> R5,760.00 | J38: R120.00 | K38: =J38*48 -> R5,760.00 | L38: R17,280.00
A39: 1.9 | B39: Decontamination | C39: monthly | D39: n/a | E39: 12 | F39: R120.00 | G39: R1,440.00 | H39: R120.00 | I39: R1,440.00 | J39: R120.00 | K39: =J39*12 -> R1,440.00 | L39: =G39+I39+K39 -> R4,320.00
A40: 2 | B40: Hygiene Dispensers/ equipment/ sanitary bins Maintenance ( MIDDELBURG OFFICE)
A41: 2.1 | B41: 1. Wall waste bins ( with inner dressing bin bags) - x4 2. Touch free Handpaper towel dispencer - (suitable for the supplied handpaper towel) x4 3. She Packet Dispensers x2 4. Disinfactant Handsoap Dispenser (foam) (x4 5. Hand sanitiser dispenser x4 6. Sanitary bins (with bin bags for sanitary waste disposal) 2 7. Air-mist dispensers 6 | C41: Monthly | D41: n/a | E41: 12 | G41: 0 | I41: =H41*12 -> 0 | K41: =J41*12 -> 0 | L41: =G41+I41+K41 -> 0
A42: 3 | B42: Supply of Hygiene Dispensers/ equipment/ sanitary bins (Once off supply & installation) (MIDDELBURG OFFICE)
A43: 3.1 | B43: Wall waste bins ( with inner dressing bin bags) - x4 | C43: once off | E43: 4 | F43: R100.00 | G43: =F43*4 -> R400.00 | H43: 0 | J43: 0 | L43: =G43+I43+K43 -> R400.00
A44: 3.2 | B44: 2. Touch free Handpaper towel dispencer - (suitable for the supplied handpaper towel) x4 | C44: once off | E44: 4 | F44: R100.00 | G44: =F44*4 -> R400.00 | H44: 0 | J44: 0 | L44: R400.00
A45: 3.3 | B45: 3. She Packet Dispensers x2 | C45: once off | E45: 2 | F45: R100.00 | G45: =F45*1 -> R100.00 | H45: 0 | J45: 0 | L45: R100.00
A46: 3.4 | B46: 4. Disinfactant Handsoap Dispenser (foam) x4 | C46: once off | E46: 4 | F46: R100.00 | G46: =F46*4 -> R400.00 | H46: 0 | J46: 0 | L46: R400.00
A47: 3.5 | B47: 5. Hand sanitiser dispenser x4 | C47: once off | E47: 4 | F47: R100.00 | G47: R400.00 | H47: 0 | J47: 0 | L47: R400.00
A48: 3.6 | B48: 6. Sanitary bins (with bin bags for sanitary waste disposal) x2 | C48: once off | E48: 2 | F48: R100.00 | G48: =F48*2 -> R200.00 | H48: 0 | J48: 0 | L48: R200.00
A49: 3.7 | B49: 7. Air-mist dispensers 10 | C49: once off | E49: 6 | F49: R100.00 | G49: =F49*6 -> R600.00 | H49: 0 | J49: 0 | L49: R600.00
J50: 0
B52: TOTAL BID PRICE (EXCL VAT) | G52: =SUBTOTAL(9,G13:G51) -> R76,590.00 | I52: =SUBTOTAL(9,I13:I51) -> R38,520.00 | K52: =SUBTOTAL(9,K13:K51) -> R42,240.00 | L52: =SUBTOTAL(9,L13:L51) -> R275,480.00
B53: VAT (@15%) | G53: =G52*0.15 -> R11,488.50 | I53: =I52*0.15 -> R5,778.00 | K53: =K52*0.15 -> R6,336.00 | L53: =L52*0.15 -> R41,322.00
B54: TOTAL BID PRICE (INCL VAT) | G54: =G52+G53 -> R88,078.50 | I54: =I52+I53 -> R44,298.00 | K54: =K52+K53 -> R48,576.00 | L54: =L52+L53 -> R316,802.00
B57: I, the bidder, confirm that the price(s) and rate(s) quoted cover all the goods and/or works specified in the bidding documents; that the price(s) or rate(s) cover all my obligations and I accept that any mistakes regarding price(s), rate(s) or calculations will be at my own risk. [Note: First convert to PDF, then add signature]
C58: Name | G58: Capacity
C60: Signature (above) | G60: Date
B62: Wall waste bins ( with inner dressing bin bags) - x5
B63: Touch free Hand paper towel dispenser - (suitable for the supplied hand paper towel) x5
B64: She Packet Dispensers x4
B65: Disinfectant Hand soap Dispenser (foam) (x)5
B66: Hand sanitiser dispenser (5
B67: Sanitary bins (with bin bags for sanitary waste disposal) x5
B68: Air-mist dispensers 6

Sheet Nelspruit (hidden)
A1: NELSPRUIT
A2: Cleaning and hygiene consumables & material required for the duration of the contract and not limited to:
A3: Description | B3: Capacity | C3: Quantity | D3: Yearly | E3: 3 years
A4: DOUBLE PLY GOOD QUALITY TOILET PAPER | B4: 48 in a Bale | C4: x3 Bales monthly | D4: =48*3*12 -> 1728 | E4: =D4*3 -> 5184
A5: GOOD QUALITY BLACK REFUSE BAGS (large) | B5: Bag of 20 | C5: x3Bags monthly | D5: =20*3*12 -> 720 | E5: =D5*3 -> 2160
A6: SMALL WASTE BAGS | B6: BAG of 200 | C6: 1x Bags monthly | D6: =200*12 -> 2400 | E6: =D6*3 -> 7200
A7: SANITIZING DISINFECTANT WIPES 100'S | B7: 100 SHEETS (BUCKET) | C7: x2 buckets quarterly | D7: 20 | E7: 60
A8: AIR-MIST REFILLS ( fit the dispenser supplied) | B8: 750ml | C8: 10 quarterly | D8: 48 | E8: 144
A9: AIRFRESHNER SPRAYS | B9: 750ml | C9: x4 monthly | D9: 48 | E9: 144
A10: SURFACE SPRAY TO CLEAN DESKS (750ml) (FURNITURE POLISH) | B10: 750 ml | C10: x4monthly | D10: 48 | E10: 144
A11: MULTIPURPOSE CLEANER | B11: 5L | C11: 4xmonthly | D11: 48 | E11: 144
A12: TOILET BOWL CLEANER | B12: 5L | C12: x1quarterly | D12: =1*12 -> 12 | E12: =D12*3 -> 36
A13: DISINFECTANT HAND WASH FOAM | B13: 5L | C13: x3monthly | D13: =3*12 -> 36 | E13: 108
A14: DISHWASHING LIQUID ( GOOD QUALITY) | B14: 5L | C14: x4 monthly | D14: =1*4*12 -> 48 | E14: 144
A15: PAPER HANDTOWELS (must fit the dispenser supplied) | B15: 6 in a Bale | C15: x3 bales monthly | D15: =6*4*12 -> 288 | E15: 864
A16: BLEACH | B16: 5L | C16: x2 monthly | D16: =1*2*12 -> 24 | E16: 72
A17: ANTI-BACTERIAL HAND SANITISER (70+% ALCOHOL) | B17: 5L | C17: x2 monthly | D17: =1*2*12 -> 24 | E17: 72
A18: MALE URINAL SCREENS/PMATS | B18: 10 in a box | C18: x1 boxes monthly | D18: =1*12 -> 12 | E18: 36
A19: DEO BLOCKS 200g. | B19: 12 in a pack | C19: x2 packs monthly | D19: =24*12 -> 288 | E19: 864
A20: WINDOW CLEANER | B20: 5L | C20: x1 quarterly | D20: =1*12 -> 12 | E20: 36
A21: Minimum cleaning equipment and tools required for the duration of the contract and not limited to:
A22: Description
A23: MINIMUM 400 GRAM MOPS | B23: Once off and replace as and when depleted/damaged
A24: BROOMS
A25: DUST PANS AND BRUSH
A26: DISHCLOTHS FOR DRYING OF DISHES
A27: SWABS FOR WASHING DISHES ( coloured)
A28: SCOURERS
A29: DUSTER CLOTHS
A30: TOILET BRUSHERS
A31: SHORT FEATHER DUSTERS
A32: TOILET BRUSHERS
A33: WINDOW WASHER WITH EXTENDABLE HANDLE
A34: THICK HOUSEHOLD GLOVES
A35: LONG FEATHER DUSTERS
A36: SCRUBBING BRUSHES
A37: MOP TROLLEYS
A38: VACUUM CLEANERS
A39: STEP LADDER
A40: TABLE 3
A41: Suppy and Installation (once off) of hygiene dispensers/units (x48)
A42: Description
A43: Wall waste bins ( with inner dressing bin bags) - x5 | B43: Total 30
A44: Touch free Hand paper towel dispenser - (suitable for the supplied hand paper towel) x5
A45: She Packet Dispensers x4
A46: Disinfectant Hand soap Dispenser (foam) (x)5
A47: Hand sanitiser dispenser (5
A48: Sanitary bins (with bin bags for sanitary waste disposal) x5
A49: Air-mist dispensers 6

Sheet Middelburg (hidden)
A1: MIDDELBURG
A2: Cleaning and hygiene consumables & material required for the duration of the contract and not limited to:
A3: Description | B3: Capacity | C3: Quantity Monthly | D3: Yearly | E3: 3 years
A4: DOUBLE PLY GOOD QUALITY TOILET PAPER | B4: 48 in a Bale | C4: x2 Bales monthly | D4: =48*2*12 -> 1152 | E4: =D4*3 -> 3456
A5: GOOD QUALITY BLACK REFUSE BAGS (large) | B5: Bag of 20 | C5: x2Bags monthly | D5: =20*2*12 -> 480 | E5: 1440
A6: SMALL WASTE BAGS | B6: BAG of 200 | C6: 1x Bags monthly | D6: =200*12 -> 2400 | E6: 7200
A7: SANITIZING DISINFECTANT WIPES 100'S | B7: 100 SHEETS (BUCKET) | C7: x1buckets quarterly | D7: =1*12 -> 12 | E7: 36
A8: AIR-MIST REFILLS ( fit the dispenser supplied) | B8: 750ml | C8: 5 quarterly | D8: =5*4 -> 20 | E8: 60
A9: AIRFRESHNER SPRAYS | B9: 750ml | C9: x4 monthly | D9: =4*12 -> 48 | E9: 144
A10: SURFACE SPRAY TO CLEAN DESKS (750ml) (FURNITURE POLISH) | B10: 750 ml | C10: x2monthly | D10: =2*12 -> 24 | E10: 72
A11: MULTIPURPOSE CLEANER | B11: 5L | C11: 2xmonthly | D11: =2*12 -> 24 | E11: 72
A12: TOILET BOWL CLEANER | B12: 5L | C12: x1quarterly | D12: =1*4 -> 4 | E12: 12
A13: DISINFECTANT HAND WASH FOAM | B13: 5L | C13: x2monthly | D13: =2*12 -> 24 | E13: 72
A14: DISHWASHING LIQUID ( GOOD QUALITY) | B14: 5L | C14: x3monthly | D14: =1*3*12 -> 36 | E14: 108
A15: PAPER HANDTOWELS (must fit the dispenser supplied) | B15: 6 in a Bale | C15: x2 bales monthly | D15: =6*2*12 -> 144 | E15: 432
A16: BLEACH | B16: 5L | C16: x2 monthly | D16: =1*2*12 -> 24 | E16: 72
A17: ANTI-BACTERIAL HAND SANITISER (70+% ALCOHOL) | B17: 5L | C17: x1 monthly | D17: =1*1*12 -> 12 | E17: 36
A18: MALE URINAL SCREENS/PMATS | B18: 10 in a box | C18: x1 boxes monthly | D18: =10*1*12 -> 120 | E18: 360
A19: DEO BLOCKS 200g. | B19: 12 in a pack | C19: x1 packs monthly | D19: =1*12 -> 12 | E19: 36
A20: WINDOW CLEANER | B20: 5L | C20: x1 quarterly | D20: =1*12 -> 12 | E20: 36
A21: Minimum cleaning equipment and tools required for the duration of the contract and not limited to:
A22: Description
A23: MINIMUM 400 GRAM MOPS | B23: Once off and replace as and when depleted/damaged
A24: BROOMS
A25: DUST PANS AND BRUSH
A26: DISHCLOTHS FOR DRYING OF DISHES
A27: SWABS FOR WASHING DISHES ( coloured)
A28: SCOURERS
A29: DUSTER CLOTHS
A30: TOILET BRUSHERS
A31: SHORT FEATHER DUSTERS
A32: TOILET BRUSHERS
A33: WINDOW WASHER WITH EXTENDABLE HANDLE
A34: THICK HOUSEHOLD GLOVES
A35: LONG FEATHER DUSTERS
A36: SCRUBBING BRUSHES
A37: MOP TROLLEYS
A38: VACUUM CLEANERS
A39: STEP LADDER
A40: TABLE 3
A41: Suppy and Installation (once off) of hygiene dispensers/units (x48)
A42: Description
A43: Wall waste bins ( with inner dressing bin bags) - x4 | B43: Total 26
A44: Touch free Hand paper towel dispenser - (suitable for the supplied hand paper towel) 4
A45: She Packet Dispensers x2
A46: Disinfectant Hand soap Dispenser (foam) (x)4
A47: Hand sanitiser dispenser (4)
A48: Sanitary bins (with bin bags for sanitary waste disposal) x2
A49: Air-mist dispensers 6

Sheet Sheet1 (hidden)
A1: Cleaners (40 hours a week)
A2: Periodically cleaners (27 hours a week)
A3: Ablution of wash-rooms & toilets once a month
A4: Deep cleaning of carpets and couches – quarterly
A5: Deep cleaning of chairs - quarterly
A6: Surface cleaning detergents 5 L
A7: Provision & servicing of Sanitary Bins
A8: Toilet papers single ply (500 sheets) per unit
A9: Antibacterial Hand Soap/Foam (800ml - 1 L)
A10: Paper Towels (150ml/500 sheets)
A11: Airfreshner
A12: Multi Surface/ Wood Polish (750 ml-1 L)
A13: Multipurpose cleaner (750ml)
A14: Dishwasher soap (750ml)
A15: Bleach (750ml)
A16: Dish swabs small- medium (5 for washing/ 5 microfibre for drying)
A17: Scourer
A18: Refuse Bag Big (pack of 20)
A19: Small Waste Bag (pack of 200)
A20: Decontamination

Sheet Price Schedule
B1: SUPPLY CHAIN MANAGEMENT
B2: Pricing schedule
A3: RFB | B3: RFB 3239-2026
A4: RFB | B4: PROVISION OF CLEANING AND HYGIENE SERVICES FOR SITA FREE STATE (BLOEMFONTEIN, DOD AND WELKOM) OFFICES FOR A PERIOD OF THIRTY-SIX (36) MONTHS
A5: Bidder Name
A7: 1. INSTRUCTION FOR COMPLETING THE PRICING SCHEDULE
A8: (a) Bidder must complete/enter YELLOW cells only, and do not change the formulas
A9: (b) Unit and Line prices must be VAT EXCLUSIVE and in South African Rand (ZAR) currency.
A10: (c) The price must include all cost to deliver the goods or render the service, including all applicable taxes, duty fees, logistics/delivery, storage, labour, overtime and subsistance and travel
A12: Item No | B12: Goods/Service description | C12: Unit of measure | D12: Forex % | E12: Qty | F12: Unit/Monthly/Quarterly Price Y1 (Excl VAT) | G12: Line/Annual Price Y1 | H12: Unit/Monthly/Quarterly Price Y2 (Excl VAT) | I12: Line/Annual Price Y2 | J12: Unit/Monthly/Quarterly Price Y3 (Excl VAT) | K12: Line/Annual Price Y3 | L12: TOTAL CONTRACT VALUE
A13: 1 | B13: SITA Free State Cleaning & Hygiene Services - (Bloemfontein Head Office, Bloemfontein DOD & SAPS Welkom Offices) | G13: =SUM(G14:G22) -> 0 | I13: =SUM(I14:I22) -> 0 | K13: =SUM(K14:K22) -> 0 | L13: =SUM(L14:L22) -> 0
A14: 1.1 | B14: Full-Time Cleaner (40 hours a week) Bloemfontein Office | C14: Per Person | D14: n/a | E14: 1 | F14: 0 | G14: =F14*12 -> 0 | H14: 0 | I14: =H14*12 -> 0 | J14: 0 | K14: =J14*12 -> 0 | L14: =G14+I14+K14 -> 0
A15: 1.2 | B15: Periodic Cleaner( Mondays to Fridays (Two days a week, 4 hours each @ SITA Bloemfontein DOD Office) | C15: Per Person | E15: 1 | F15: 0 | G15: =F15*12 -> 0 | H15: 0 | I15: =H15*12 -> 0 | J15: 0 | K15: =J15*12 -> 0 | L15: =G15+I15+K15 -> 0
A16: 1.3 | B16: Periodic Cleaner ( Mondays to Fridays (Two days a week, 4 hours each @ SITA Welkom SAPS Office) | C16: Per Person | E16: 1 | F16: 0 | G16: 0 | H16: 0 | I16: 0 | J16: 0 | K16: 0 | L16: 0
A17: 1.4 | B17: Supply of Monthly Cleaning and Hygiene Consumables/Material | C17: Monthly | D17: n/a | E17: 12 | F17: 0 | G17: =F17*12 -> 0 | H17: 0 | I17: 0 | J17: 0 | K17: =J17*12 -> 0 | L17: =G17+I17+K17 -> 0
A18: 1.5 | B18: Deep Cleaning of Toilets (Bloemfontein Main Office & DOD) | C18: Monthly | D18: n/a | E18: 12 | F18: 0 | G18: 0 | H18: 0 | I18: 0 | J18: 0 | K18: 0 | L18: 0
A19: 1.6 | B19: Deep Cleaning of Carperts (See attached Annexure B of the Bid Specification) (Bloemfontein Head Office & DOD) | C19: Quarterly | D19: n/a | E19: 4 | F19: 0 | G19: =F19*4 -> 0 | H19: 0 | I19: =H19*4 -> 0 | J19: 0 | K19: =J19*4 -> 0 | L19: 0
A20: 1.7 | B20: Deep Cleaning of Chairs /Couches (See attached Annexure B of the Bid Specification) | C20: Bi-Annually | D20: n/a | E20: 2 | F20: 0 | G20: =F20*2 -> 0 | H20: 0 | I20: =H20*2 -> 0 | J20: 0 | K20: =J20*2 -> 0 | L20: 0
A21: 1.8 | B21: Sanitary Bin Service/ Waste Removal (Bloemfontein & DOD) | C21: Bi-Monthly | D21: n/a | E21: 24 | F21: 0 | G21: =F21*24 -> 0 | H21: 0 | I21: =H21*24 -> 0 | J21: 0 | K21: =J21*24 -> 0 | L21: 0
A22: 1.9 | B22: Decontamination | C22: Monthly | D22: n/a | E22: 12 | F22: 0 | G22: 0 | H22: 0 | I22: 0 | J22: 0 | K22: =J22*12 -> 0 | L22: =G22+I22+K22 -> 0
A23: 2 | B23: Maintenance/Servicing of Hygiene Dispensers/ Equipment/ Sanitary Bins (Once off supply and installation at bidder's own cost) | G23: =G24 -> 0 | I23: =I24 -> 0 | K23: =K24 -> 0 | L23: =L24 -> 0
A24: 2.1 | B24: a) SHE/Sanitary bins (with bin bags for sanitary waste disposal) x 4 b) Paper towel dispenser (automated) x4 c) SHE Packet Dispensers x 4 d) Disinfectant Hand soap Dispenser (foam) x 4 e) Hand sanitiser dispenser x 5 f) Air-mist dispensers x 6 | C24: Monthly | D24: n/a | E24: 12 | F24: 0 | G24: 0 | H24: 0 | I24: =H24*12 -> 0 | J24: 0 | K24: =J24*12 -> 0 | L24: =G24+I24+K24 -> 0
B25: TOTAL BID PRICE (EXCL VAT) | G25: =G23+G13 -> 0 | I25: =I23+I13 -> 0 | K25: =K23+K13 -> 0 | L25: =L23+L13 -> 0
B26: VAT (@15%) | G26: =G27-G25 -> 0 | I26: =I27-I25 -> 0 | K26: =K27-K25 -> 0 | L26: =L27-L25 -> 0
B27: TOTAL BID PRICE (INCL VAT) | G27: =G25*1.15 -> 0 | I27: =I25*1.15 -> 0 | K27: =K25*1.15 -> 0 | L27: =L25*1.15 -> 0
B30: I, the bidder, confirm that the price(s) and rate(s) quoted cover all the goods and/or works specified in the bidding documents; that the price(s) or rate(s) cover all my obligations and I accept that any mistakes regarding price(s), rate(s) or calculations will be at my own risk. [Note: First convert to PDF, then add signature]
C31: Name | G31: Capacity
C33: Signature (above) | G33: Date

Sheet Required (hidden)
B1: SUPPLY CHAIN MANAGEMENT
B2: Pricing schedule
A3: RFQ No
A4: RFQ Title | B4: PROVISION OF CLEANING AND HYGIENE SERVICES FOR SITA LIMPOPO OFFICES FOR A PERIOD OF THIRTY-SIX (36) MONTHS
A5: Bidder Name
A7: 1. INSTRUCTION FOR COMPLETING THE PRICING SCHEDULE
A8: (a) Bidder must complete/enter YELLOW cells only
A9: (b) Unit and Line prices must be VAT EXCLUSIVE and in South African Rand (ZAR) currency.
A10: (c) The price must include all cost to deliver the goods or render the service, including all applicable taxes, duty fees, logistics/delivery, storage, labour, overtime and subsistance and travel
A12: Item No | B12: Goods/Service description Nelspruit Office | C12: Unit of measure | D12: Forex % | E12: Qty | F12: Unit/Monthly Price Y1 (Excl VAT | G12: Line/Annual Price Y1 | H12: Unit/Monthly Price Y2 (Excl VAT) | I12: Line/Annual Price Y2 | J12: Unit/Monthly Price Y3 (Excl VAT) | K12: Line/Annual Price Y3 | L12: TOTAL CONTRACT VALUE
A13: 1 | B13: SITA MPUMALANGA- CLEANING & HYGIENE SERVICES NELSPRUIT OFFICE | F13: =SUBTOTAL(9,F14:F31) -> R8,560.00 | G13: R61,850.00 | H13: R1,970.00 | I13: R26,280.00 | J13: R2,250.00 | K13: R30,000.00 | L13: =G13+I13+K13 -> R118,130.00
A14: 1.1 | B14: Full-time Cleaners (40 hours a week) Nelspruit & Middelburg Office | C14: No. of Person | D14: n/a | E14: 1 | G14: =F14*12 -> 0 | I14: =H14*12 -> 0 | K14: =J14*12 -> 0 | L14: =G14+I14+K14 -> 0 | M14: Yes
A15: 1.2 | B15: Supply of monthly cleaning and hygiene consumables/material | C15: Monthly | D15: n/a | E15: 12 | G15: =F15*12 -> 0 | I15: 0 | K15: 0 | L15: =G15+I15+K15 -> 0 | M15: Yes - see revised list
A16: 1.3 | B16: Deep cleaning of toilets monthly | C16: Monthly | D16: n/a | E16: 12 | F16: R340.00 | G16: =F16*12 -> R4,080.00 | H16: R420.00 | I16: R5,040.00 | J16: R470.00 | K16: R5,640.00 | L16: R14,760.00 | M16: No
A17: 1.4 | B17: Deep cleaning of carperts and couches (Quarterly) | C17: Quarterly | D17: n/a | E17: 4 | G17: =F17*4 -> 0 | I17: =H17*4 -> 0 | K17: =J17*4 -> 0 | L17: 0 | M17: Yes
A18: 1.5 | B18: Deep Cleaning of Chairs / couches (Bi-Annually) | C18: Bi-annualy | D18: n/a | E18: 2 | G18: =F18*2 -> 0 | I18: =H18*2 -> 0 | K18: =J18*2 -> 0 | L18: 0 | M18: Yes
A19: 1.6 | B19: Sanitary Bin Service/ waste removal (twice a month) | C19: Bi-Weekly | D19: n/a | E19: 24 | F19: R190.00 | G19: =F19*24 -> R4,560.00 | H19: R220.00 | I19: =H19*24 -> R5,280.00 | J19: R250.00 | K19: =J19*24 -> R6,000.00 | L19: R15,840.00 | M19: No
A20: 1.7 | B20: Decontamination | C20: monthly | D20: n/a | E20: 12 | G20: 0 | I20: 0 | K20: 0 | L20: =G20+I20+K20 -> 0 | M20: No
A21: 2 | B21: Hygiene Dispensers/ equipment/ sanitary bins maintenance Maintenance | G21: 0 | I21: 0 | K21: 0 | L21: =G21+I21+K21 -> 0
A22: 2.1 | B22: 1. Wall waste bins ( with inner dressing bin bags) - x5 2. Touch free Handpaper towel dispencer - (suitable for the supplied handpaper towel) x5 3. She Packet Dispensers x4 4. Disinfactant Handsoap Dispenser (foam) (x5) 5. Hand sanitiser dispenser x5 6. Sanitary bins (with bin bags for sanitary waste disposal) 5 7. Air-mist dispensers 6 | C22: Monthly | D22: n/a | E22: 12 | F22: R1,590.00 | G22: R19,080.00 | H22: R1,330.00 | I22: R15,960.00 | J22: R1,530.00 | K22: R18,360.00 | L22: =G22+I22+K22 -> R53,400.00 | M22: No
A23: 3 | B23: Supply of Hygiene Dispensers/ equipment/ sanitary bins (Once off supply & installation) | L23: =SUM(L14:L22) -> R84,000.00
A24: 3.1 | B24: Wall waste bins ( with inner dressing bin bags) - x5 | C24: once off | E24: 5 | F24: R1,110.00 | G24: =F24*5 -> R5,550.00 | L24: =G24+I24+K24 -> R5,550.00 | M24: No
A25: 3.2 | B25: 2. Touch free Handpaper towel dispencer - (suitable for the supplied handpaper towel) x5 | C25: once off | E25: 5 | F25: R990.00 | G25: =F25*8 -> R7,920.00 | L25: R7,920.00 | M25: No
A26: 3.3 | B26: 3. She Packet Dispensers x4 | C26: once off | E26: 4 | F26: R590.00 | G26: =F26*4 -> R2,360.00 | H26: 0 | L26: R2,360.00 | M26: No
A27: 3.4 | B27: 4. Disinfactant Handsoap Dispenser (foam) x5 | C27: once off | E27: 5 | F27: R990.00 | G27: =F27*5 -> R4,950.00 | H27: 0 | L27: R4,950.00 | M27: No
A28: 3.5 | B28: 5. Hand sanitiser dispenser x5 | C28: once off | E28: 5 | F28: R990.00 | G28: =F28*5 -> R4,950.00 | L28: R4,950.00 | M28: No
A29: 3.6 | B29: 6. Sanitary bins (with bin bags for sanitary waste disposal) x4 | C29: once off | E29: 4 | F29: R1,110.00 | G29: =F29*4 -> R4,440.00 | H29: 0 | L29: R4,440.00 | M29: No
A30: 3.7 | B30: 7. Air-mist dispensers x6 | C30: once off | E30: 3 | F30: R660.00 | G30: =F30*6 -> R3,960.00 | L30: R3,960.00 | M30: Yes see revised no
H31: =SUM(H24:H30) -> 0 | L31: =SUM(L24:L30) -> R34,130.00
B57: I, the bidder, confirm that the price(s) and rate(s) quoted cover all the goods and/or works specified in the bidding documents; that the price(s) or rate(s) cover all my obligations and I accept that any mistakes regarding price(s), rate(s) or calculations will be at my own risk. [Note: First convert to PDF, then add signature]
C58: Name | G58: Capacity
C60: Signature (above) | G60: Date
B62: Wall waste bins ( with inner dressing bin bags) - x5
B63: Touch free Hand paper towel dispenser - (suitable for the supplied hand paper towel) x5
B64: She Packet Dispensers x4
B65: Disinfectant Hand soap Dispenser (foam) (x)5
B66: Hand sanitiser dispenser (5
B67: Sanitary bins (with bin bags for sanitary waste disposal) x5
B68: Air-mist dispensers 6
